fUSD/lending_fUSD_20260615
["ID","MTS","AMOUNT","RATE_DAILY","PERIOD"]
[425081304,1781470244000,-1251.20981608,0.00013699,2]
[425081295,1781470244000,-1251.20981608,0.00013699,2]
[425081298,1781470244000,-1251.20981608,0.00013699,2]
[425081300,1781470244000,-1251.20981608,0.00013699,2]
[425081302,1781470244000,-1251.20981608,0.00013699,2]
[425081303,1781470244000,-1251.20981608,0.00013699,2]
[425081299,1781470244000,-1251.20981608,0.00013699,2]
[425081301,1781470244000,-1251.20981608,0.00013699,2]
[425081297,1781470244000,-1251.20981608,0.00013699,2]
[425081316,1781470244000,-1251.20981608,0.00013699,2]
[425081312,1781470244000,-1251.20981608,0.00013699,2]
[425081307,1781470244000,-1251.20981608,0.00013699,2]
[425081313,1781470244000,-1251.20981608,0.00013699,2]
[425081314,1781470244000,-1251.20981608,0.00013699,2]
[425081315,1781470244000,-1251.20981608,0.00013699,2]
[425081320,1781470244000,-1251.20981608,0.00013699,2]
[425081317,1781470244000,-1251.20981608,0.00013699,2]
[425081308,1781470244000,-1251.20981608,0.00013699,2]
[425081309,1781470244000,-1251.20981608,0.00013699,2]
[425081310,1781470244000,-1251.20981608,0.00013699,2]
[425081318,1781470244000,-1251.20981608,0.00013699,2]
[425081344,1781470245000,-450.93119919,0.00013699,2]
[425081385,1781470247000,-10356.07,0.00014497,2]
[425081383,1781470247000,-968.64364789,0.00014422,2]
[425081377,1781470247000,-150.0,0.00014106,2]
[425081381,1781470247000,-184.24,0.00014364,2]
[425081382,1781470247000,-10200.0,0.000144,5]
[425081374,1781470247000,-2283.78199443,0.00014028,2]
[425081378,1781470247000,-656.13953842,0.00014156,2]
[425081384,1781470247000,-698.01,0.00014497,2]
[425081379,1781470247000,-8200.0,0.000143,5]
[425081398,1781470247000,-2000.0,0.000147,2]
[425081390,1781470247000,-2000.0,0.000146,2]
[425081388,1781470247000,-588.86,0.00014515,2]
[425081391,1781470247000,-2000.0,0.000146,2]
[425081396,1781470247000,-2000.0,0.000147,2]
[425081392,1781470247000,-2000.0,0.000146,2]
[425081386,1781470247000,-990.4,0.00014497,2]
[425081389,1781470247000,-656.13953842,0.00014528,2]
[425081394,1781470247000,-2000.0,0.000146,2]
[425081395,1781470247000,-2000.0,0.000146,5]
[425081380,1781470247000,-1000.0,0.00014332,2]
[425081387,1781470247000,-2000.0,0.000145,5]
[425081373,1781470247000,-250.0,0.00014,2]
[425081360,1781470247000,-1225.44961398,0.00013699,2]
[425081376,1781470247000,-4622.508,0.00014028,2]
[425081400,1781470247000,-2000.0,0.000147,2]
[425081349,1781470247000,-1225.44961398,0.00013699,2]
[425081348,1781470247000,-490.45345839,0.00013699,2]
[425081350,1781470247000,-1225.44961398,0.00013699,2]
[425081351,1781470247000,-1225.44961398,0.00013699,2]
[425081354,1781470247000,-1225.44961398,0.00013699,2]
[425081355,1781470247000,-1225.44961398,0.00013699,2]
[425081353,1781470247000,-1225.44961398,0.00013699,2]
[425081352,1781470247000,-1225.44961398,0.00013699,2]
[425081357,1781470247000,-1225.44961398,0.00013699,2]
[425081375,1781470247000,-3416.40127964,0.00014028,2]
[425081367,1781470247000,-1000.0,0.00013699,2]
[425081359,1781470247000,-1225.44961398,0.00013699,2]
[425081365,1781470247000,-1225.44961398,0.00013699,2]
[425081362,1781470247000,-1225.44961398,0.00013699,2]
[425081363,1781470247000,-1225.44961398,0.00013699,2]
[425081358,1781470247000,-1225.44961398,0.00013699,2]
[425081361,1781470247000,-1225.44961398,0.00013699,2]
[425081366,1781470247000,-1225.44961411,0.00013699,2]
[425081364,1781470247000,-1225.44961398,0.00013699,2]
[425081369,1781470247000,-656.13953842,0.00013784,2]
[425081371,1781470247000,-968.64364789,0.00013943,2]
[425081356,1781470247000,-1225.44961398,0.00013699,2]
[425081401,1781470247000,-2000.0,0.000147,2]
[425081393,1781470247000,-2000.0,0.000146,2]
[425081405,1781470247000,-2000.0,0.000147,2]
[425081432,1781470247000,-500.0,0.00014891,2]
[425081433,1781470247000,-563.33987786,0.00014891,2]
[425081431,1781470247000,-500.0,0.0001489,2]
[425081435,1781470247000,-500.0,0.00014891,2]
[425081434,1781470247000,-500.0,0.00014891,2]
[425081437,1781470247000,-500.0,0.00014891,2]
[425081438,1781470247000,-500.0,0.00014891,2]
[425081436,1781470247000,-500.0,0.00014891,2]
[425081441,1781470247000,-500.0,0.00014891,2]
[425081439,1781470247000,-500.0,0.00014891,2]
[425081429,1781470247000,-200.0,0.0001488,2]
[425081442,1781470247000,-500.0,0.00014891,2]
[425081444,1781470247000,-802.56,0.00014891,2]
[425081445,1781470247000,-802.56,0.00014891,2]
[425081446,1781470247000,-802.56,0.00014891,2]
[425081447,1781470247000,-802.56,0.00014891,2]
[425081448,1781470247000,-802.56,0.00014891,2]
[425081449,1781470247000,-677.31,0.00014891,2]
[425081451,1781470247000,-677.31,0.00014891,2]
[425081450,1781470247000,-677.31,0.00014891,2]
[425081452,1781470247000,-677.31,0.00014891,2]
[425081399,1781470247000,-2000.0,0.000147,2]
[425081443,1781470247000,-500.0,0.00014891,2]
[425081428,1781470247000,-1000.0,0.00014873,2]
[425081440,1781470247000,-500.0,0.00014891,2]
[425081427,1781470247000,-1000.0,0.00014869,2]
[425081406,1781470247000,-2000.0,0.000147,2]
[425081430,1781470247000,-1000.0,0.00014888,2]
[425081402,1781470247000,-2000.0,0.000147,5]
[425081403,1781470247000,-2000.0,0.000147,2]
[425081407,1781470247000,-2000.0,0.000147,2]
[425081408,1781470247000,-2000.0,0.000147,2]
[425081410,1781470247000,-2000.0,0.000147,2]
[425081421,1781470247000,-500.0,0.00014864,2]
[425081413,1781470247000,-477.0,0.00014763,2]
[425081417,1781470247000,-477.0,0.00014849,2]
[425081415,1781470247000,-477.0,0.00014792,2]
[425081409,1781470247000,-2000.0,0.000147,2]
[425081412,1781470247000,-393.39,0.00014757,2]
[425081419,1781470247000,-5800.0,0.00014858,2]
[425081420,1781470247000,-500.0,0.00014864,2]
[425081418,1781470247000,-477.0,0.00014851,2]
[425081414,1781470247000,-477.0,0.00014774,2]
[425081416,1781470247000,-2000.0,0.000148,5]
[425081422,1781470247000,-500.0,0.00014864,2]
[425081423,1781470247000,-802.56,0.00014864,2]
[425081424,1781470247000,-677.31,0.00014864,2]
[425081426,1781470247000,-477.0,0.00014866,2]
[425081425,1781470247000,-5800.0,0.00014866,2]
[425081491,1781470248000,-476.78641306,0.00014986,2]
[425081490,1781470248000,-1308.8725892,0.00014975,2]
[425081493,1781470248000,-292.0489504,0.00014987,2]
[425081492,1781470248000,-4459.2421366,0.00014986,2]
[425081488,1781470248000,-677.31,0.00014974,2]
[425081487,1781470248000,-802.56,0.00014974,2]
[425081484,1781470248000,-500.0,0.00014974,2]
[425081486,1781470248000,-802.56,0.00014974,2]
[425081483,1781470248000,-192.71236502,0.00014974,2]
[425081485,1781470248000,-500.0,0.00014974,2]
[425081494,1781470248000,-437.93653205,0.0001499,2]
[425081489,1781470248000,-677.31,0.00014974,2]
[425081497,1781470248000,-151.0,0.00014997,2]
[425081504,1781470248000,-500.0,0.00014999,2]
[425081500,1781470248000,-677.31,0.00014998,2]
[425081496,1781470248000,-437.93653205,0.0001499,2]
[425081502,1781470248000,-500.0,0.00014999,2]
[425081499,1781470248000,-802.56,0.00014998,2]
[425081503,1781470248000,-500.0,0.00014999,2]
[425081498,1781470248000,-500.0,0.00014998,2]
[425081506,1781470248000,-802.56,0.00014999,2]
[425081501,1781470248000,-500.0,0.00014999,2]
[425081505,1781470248000,-520.99910631,0.00014999,2]
[425081507,1781470248000,-802.56,0.00014999,2]
[425081509,1781470248000,-802.56,0.00014999,2]
[425081482,1781470248000,-116057.7998075,0.00014974,2]
[425081495,1781470248000,-437.93653205,0.0001499,2]
[425081480,1781470248000,-500.0,0.00014973,2]
[425081456,1781470248000,-500.0,0.00014899,2]
[425081477,1781470248000,-19984.9367455,0.00014973,2]
[425081508,1781470248000,-802.56,0.00014999,2]
[425081454,1781470248000,-207.82692773,0.00014897,2]
[425081453,1781470248000,-677.31,0.00014891,2]
[425081457,1781470248000,-1362.0,0.000149,5]
[425081458,1781470248000,-656.13953842,0.000149,2]
[425081455,1781470248000,-10000.0,0.00014899,2]
[425081459,1781470248000,-2424.0,0.000149,5]
[425081461,1781470248000,-199.58232293,0.000149,2]
[425081460,1781470248000,-968.64364789,0.000149,2]
[425081462,1781470248000,-2717.8793069,0.000149,2]
[425081463,1781470248000,-668.22949296,0.000149,2]
[425081464,1781470248000,-490.86799958,0.000149,2]
[425081478,1781470248000,-821.1,0.00014973,2]
[425081466,1781470248000,-89566.2725841,0.00014912,2]
[425081465,1781470248000,-1000.0,0.00014905,2]
[425081468,1781470248000,-5865.9599776,0.00014925,2]
[425081469,1781470248000,-477.0,0.00014933,2]
[425081470,1781470248000,-1000.0,0.00014954,2]
[425081473,1781470248000,-250.0,0.00014959,2]
[425081472,1781470248000,-1000.0,0.00014958,2]
[425081471,1781470248000,-1000.0,0.00014958,2]
[425081475,1781470248000,-265.71662245,0.00014963,2]
[425081479,1781470248000,-964.72,0.00014973,2]
[425081481,1781470248000,-1709.0,0.00014974,5]
[425081476,1781470248000,-327.0,0.00014972,2]
[425081474,1781470248000,-350.0,0.00014959,2]
[425081467,1781470248000,-477.0,0.00014921,2]
[425081513,1781470248000,-821.1,0.00014999,2]
[425081517,1781470248000,-821.1,0.00014999,2]
[425081556,1781470248000,-500.0,0.00014999,2]
[425081543,1781470248000,-500.0,0.00014999,2]
[425081540,1781470248000,-964.72,0.00014999,2]
[425081545,1781470248000,-500.0,0.00014999,2]
[425081547,1781470248000,-500.0,0.00014999,2]
[425081546,1781470248000,-964.72,0.00014999,2]
[425081548,1781470248000,-964.93778046,0.00014999,2]
[425081553,1781470248000,-500.0,0.00014999,2]
[425081550,1781470248000,-500.0,0.00014999,2]
[425081552,1781470248000,-500.0,0.00014999,2]
[425081549,1781470248000,-500.0,0.00014999,2]
[425081554,1781470248000,-500.0,0.00014999,2]
[425081555,1781470248000,-500.0,0.00014999,2]
[425081537,1781470248000,-964.72,0.00014999,2]
[425081551,1781470248000,-500.0,0.00014999,2]
[425081558,1781470248000,-500.0,0.00014999,2]
[425081559,1781470248000,-500.0,0.00014999,2]
[425081568,1781470248000,-110566.37506672,0.00015,2]
[425081564,1781470248000,-300.0,0.00014999,2]
[425081567,1781470248000,-350.0,0.00015,2]
[425081561,1781470248000,-300.0,0.00014999,2]
[425081562,1781470248000,-300.0,0.00014999,2]
[425081566,1781470248000,-3000.0,0.00015,2]
[425081563,1781470248000,-666.0,0.00014999,2]
[425081565,1781470248000,-250.0,0.00015,2]
[425081569,1781470248000,-79370.994,0.00015,2]
[425081514,1781470248000,-821.1,0.00014999,2]
[425081560,1781470248000,-500.0,0.00014999,2]
[425081542,1781470248000,-964.72,0.00014999,2]
[425081557,1781470248000,-500.0,0.00014999,2]
[425081541,1781470248000,-964.72,0.00014999,2]
[425081510,1781470248000,-802.56,0.00014999,2]
[425081512,1781470248000,-802.58438124,0.00014999,2]
[425081511,1781470248000,-802.56,0.00014999,2]
[425081519,1781470248000,-821.1,0.00014999,2]
[425081516,1781470248000,-821.1,0.00014999,2]
[425081515,1781470248000,-821.1,0.00014999,2]
[425081518,1781470248000,-821.1,0.00014999,2]
[425081521,1781470248000,-821.1,0.00014999,2]
[425081539,1781470248000,-964.72,0.00014999,2]
[425081531,1781470248000,-677.31,0.00014999,2]
[425081522,1781470248000,-821.1,0.00014999,2]
[425081525,1781470248000,-821.15736959,0.00014999,2]
[425081524,1781470248000,-821.1,0.00014999,2]
[425081523,1781470248000,-821.1,0.00014999,2]
[425081520,1781470248000,-821.1,0.00014999,2]
[425081530,1781470248000,-677.31,0.00014999,2]
[425081536,1781470248000,-964.72,0.00014999,2]
[425081529,1781470248000,-677.31,0.00014999,2]
[425081528,1781470248000,-677.31,0.00014999,2]
[425081527,1781470248000,-677.31,0.00014999,2]
[425081532,1781470248000,-677.4196746,0.00014999,2]
[425081544,1781470248000,-964.72,0.00014999,2]
[425081534,1781470248000,-964.72,0.00014999,2]
[425081538,1781470248000,-964.72,0.00014999,2]
[425081533,1781470248000,-964.72,0.00014999,2]
[425081535,1781470248000,-964.72,0.00014999,2]
[425081526,1781470248000,-677.31,0.00014999,2]
[425081570,1781470249000,-995.33,0.00015,2]
[425081572,1781470249000,-1596.98798738,0.00015,2]
[425081571,1781470249000,-1284.26114651,0.00015,2]
[425081587,1781471328000,8793.0,0.00030136,120]
[425081604,1781471431000,-151.0,0.00012358,2]
[425081611,1781471431000,-300.0,0.00012476,2]
[425081614,1781471431000,-562.73936638,0.00012477,2]
[425081612,1781471431000,-37.51482642,0.00012477,2]
[425081609,1781471431000,-52.2231334,0.00012476,2]
[425081610,1781471431000,-500.0,0.00012476,2]
[425081608,1781471431000,-430.08677323,0.00012476,2]
[425081606,1781471431000,-151.0,0.00012358,2]
[425081607,1781471431000,-310.4,0.00012358,2]
[425081605,1781471431000,-153.0,0.00012358,2]
[425081623,1781471431000,-150.0,0.0001249,2]
[425081603,1781471431000,-152.0,0.00012358,2]
[425081599,1781471431000,-1852.42,0.00012294,2]
[425081601,1781471431000,-151.0,0.00012358,2]
[425081600,1781471431000,-151.0,0.00012358,2]
[425081598,1781471431000,-150.0,0.00012294,2]
[425081594,1781471431000,-150.0,0.00012264,2]
[425081596,1781471431000,-150.0,0.00012264,2]
[425081597,1781471431000,-435.1,0.00012264,2]
[425081595,1781471431000,-150.0,0.00012264,2]
[425081593,1781471431000,-151.0,0.00012264,2]
[425081615,1781471431000,-153.0,0.00012477,2]
[425081602,1781471431000,-150.0,0.00012358,2]
[425081613,1781471431000,-399.7458072,0.00012477,2]
[425081641,1781471431000,-150.0,0.0001249,2]
[425081618,1781471431000,-152.0,0.00012477,2]
[425081616,1781471431000,-151.0,0.00012477,2]
[425081650,1781471431000,-748.38,0.00012497,2]
[425081649,1781471431000,-152.0,0.00012492,2]
[425081646,1781471431000,-150.0,0.0001249,2]
[425081648,1781471431000,-150.0,0.0001249,2]
[425081647,1781471431000,-151.0,0.0001249,2]
[425081645,1781471431000,-151.0,0.0001249,2]
[425081639,1781471431000,-150.0,0.0001249,2]
[425081636,1781471431000,-151.0,0.0001249,2]
[425081643,1781471431000,-151.0,0.0001249,2]
[425081644,1781471431000,-151.0,0.0001249,2]
[425081638,1781471431000,-151.0,0.0001249,2]
[425081634,1781471431000,-151.0,0.0001249,2]
[425081628,1781471431000,-153.0,0.0001249,2]
[425081630,1781471431000,-35.53465543,0.0001249,2]
[425081633,1781471431000,-115.46534457,0.0001249,2]
[425081629,1781471431000,-151.0,0.0001249,2]
[425081625,1781471431000,-151.0,0.0001249,2]
[425081626,1781471431000,-152.0,0.0001249,2]
[425081621,1781471431000,-151.0,0.0001249,2]
[425081617,1781471431000,-153.0,0.00012477,2]
[425081619,1781471431000,-150.0,0.00012477,2]
[425081637,1781471431000,-151.0,0.0001249,2]
[425081682,1781471432000,-500.0,0.00013425,2]
[425081683,1781471432000,-500.0,0.00013425,2]
[425081685,1781471432000,-500.0,0.00013425,2]
[425081686,1781471432000,-500.0,0.00013425,2]
[425081678,1781471432000,-500.0,0.00013425,2]
[425081684,1781471432000,-158.46218591,0.00013425,2]
[425081680,1781471432000,-500.0,0.00013425,2]
[425081677,1781471432000,-166.66,0.00013284,2]
[425081687,1781471432000,-500.0,0.00013425,2]
[425081681,1781471432000,-500.0,0.00013425,2]
[425081690,1781471432000,-300.0,0.00013491,2]
[425081701,1781471432000,-763.18,0.00013698,2]
[425081691,1781471432000,-166.66,0.00013558,2]
[425081688,1781471432000,-231.40241046,0.00013425,2]
[425081693,1781471432000,-500.0,0.00013698,2]
[425081692,1781471432000,-1129.24228112,0.00013652,2]
[425081695,1781471432000,-500.0,0.00013698,2]
[425081697,1781471432000,-500.0,0.00013698,2]
[425081696,1781471432000,-504.0687638,0.00013698,2]
[425081694,1781471432000,-500.0,0.00013698,2]
[425081698,1781471432000,-763.18,0.00013698,2]
[425081699,1781471432000,-763.18,0.00013698,2]
[425081679,1781471432000,-500.0,0.00013425,2]
[425081689,1781471432000,-150.0,0.00013425,2]
[425081676,1781471432000,-184.24,0.00013256,2]
[425081706,1781471432000,-441.85686233,0.00013698,2]
[425081670,1781471432000,-150.0,0.00012876,2]
[425081705,1781471432000,-345.30457863,0.00013698,2]
[425081651,1781471432000,-1113.74,0.00012497,2]
[425081653,1781471432000,-150.0,0.00012522,2]
[425081654,1781471432000,-297.54,0.00012529,2]
[425081652,1781471432000,-151.0,0.00012498,2]
[425081655,1781471432000,-150.0,0.00012578,2]
[425081656,1781471432000,-310.01,0.00012579,2]
[425081657,1781471432000,-150.0,0.00012618,2]
[425081659,1781471432000,-599.22887998,0.00012863,2]
[425081658,1781471432000,-435.77,0.00012785,2]
[425081660,1781471432000,-233.3378351,0.00012863,2]
[425081674,1781471432000,-166.66,0.0001301,2]
[425081662,1781471432000,-753.23,0.00012864,2]
[425081664,1781471432000,-150.0,0.00012876,2]
[425081667,1781471432000,-151.0,0.00012876,2]
[425081668,1781471432000,-151.0,0.00012876,2]
[425081663,1781471432000,-151.0,0.00012876,2]
[425081666,1781471432000,-151.0,0.00012876,2]
[425081665,1781471432000,-151.0,0.00012876,2]
[425081669,1781471432000,-153.0,0.00012876,2]
[425081673,1781471432000,-152.0,0.00012876,2]
[425081675,1781471432000,-200.0,0.00013099,2]
[425081672,1781471432000,-150.0,0.00012876,2]
[425081671,1781471432000,-152.0,0.00012876,2]
[425081661,1781471432000,-163.33648456,0.00012863,2]
[425081702,1781471432000,-763.18,0.00013698,2]
[425081717,1781471432000,-196.29,0.00013698,2]
[425081700,1781471432000,-763.18,0.00013698,2]
[425081732,1781471432000,-551.94,0.00013698,2]
[425081735,1781471432000,-551.94,0.00013698,2]
[425081737,1781471432000,-551.94,0.00013698,2]
[425081740,1781471432000,-500.0,0.00013698,2]
[425081738,1781471432000,-551.94,0.00013698,2]
[425081742,1781471432000,-500.0,0.00013698,2]
[425081739,1781471432000,-500.0,0.00013698,2]
[425081741,1781471432000,-500.0,0.00013698,2]
[425081736,1781471432000,-551.94,0.00013698,2]
[425081744,1781471432000,-500.0,0.00013698,2]
[425081743,1781471432000,-500.0,0.00013698,2]
[425081734,1781471432000,-551.94,0.00013698,2]
[425081746,1781471432000,-500.0,0.00013698,2]
[425081747,1781471432000,-500.0,0.00013698,2]
[425081753,1781471432000,-500.0,0.00013698,2]
[425081751,1781471432000,-500.0,0.00013698,2]
[425081750,1781471432000,-500.0,0.00013698,2]
[425081749,1781471432000,-500.0,0.00013698,2]
[425081752,1781471432000,-500.0,0.00013698,2]
[425081754,1781471432000,-500.0,0.00013698,2]
[425081757,1781471432000,-500.0,0.00013698,2]
[425081755,1781471432000,-500.0,0.00013698,2]
[425081756,1781471432000,-500.0,0.00013698,2]
[425081707,1781471432000,-321.32313767,0.00013698,2]
[425081748,1781471432000,-500.0,0.00013698,2]
[425081733,1781471432000,-551.94,0.00013698,2]
[425081745,1781471432000,-500.0,0.00013698,2]
[425081727,1781471432000,-500.0,0.00013698,2]
[425081703,1781471432000,-763.18,0.00013698,2]
[425081731,1781471432000,-551.94,0.00013698,2]
[425081704,1781471432000,-417.87542137,0.00013698,2]
[425081708,1781471432000,-254.08286965,0.00013698,2]
[425081709,1781471432000,-509.09713035,0.00013698,2]
[425081710,1781471432000,-763.18,0.00013698,2]
[425081712,1781471432000,-500.0,0.00013698,2]
[425081711,1781471432000,-500.0,0.00013698,2]
[425081716,1781471432000,-500.0,0.00013698,2]
[425081714,1781471432000,-500.0,0.00013698,2]
[425081758,1781471432000,-500.0,0.00013698,2]
[425081715,1781471432000,-500.0,0.00013698,2]
[425081713,1781471432000,-500.0,0.00013698,2]
[425081725,1781471432000,-500.0,0.00013698,2]
[425081721,1781471432000,-500.0,0.00013698,2]
[425081719,1781471432000,-500.0,0.00013698,2]
[425081718,1781471432000,-500.0,0.00013698,2]
[425081722,1781471432000,-500.0,0.00013698,2]
[425081726,1781471432000,-500.0,0.00013698,2]
[425081723,1781471432000,-500.0,0.00013698,2]
[425081728,1781471432000,-500.0,0.00013698,2]
[425081729,1781471432000,-551.94,0.00013698,2]
[425081724,1781471432000,-500.0,0.00013698,2]
[425081720,1781471432000,-500.0,0.00013698,2]
[425081730,1781471432000,-551.94,0.00013698,2]
[425081776,1781471433000,-200.0,0.00013699,2]
[425081787,1781471433000,-500.0,0.00013699,2]
[425081773,1781471433000,-9625.6,0.00013699,2]
[425081775,1781471433000,-2500.0,0.00013699,2]
[425081778,1781471433000,-2214.94788622,0.00013699,2]
[425081784,1781471433000,-500.0,0.00013699,2]
[425081779,1781471433000,-4284.26,0.00013699,2]
[425081781,1781471433000,-500.0,0.00013699,2]
[425081782,1781471433000,-500.0,0.00013699,2]
[425081777,1781471433000,-3132.74663371,0.00013699,2]
[425081780,1781471433000,-732.68539863,0.00013699,2]
[425081774,1781471433000,-168.74,0.00013699,2]
[425081762,1781471433000,-500.0,0.00013698,2]
[425081771,1781471433000,-677.3,0.00013698,2]
[425081770,1781471433000,-287.06193287,0.00013698,2]
[425081769,1781471433000,-500.0,0.00013698,2]
[425081767,1781471433000,-500.0,0.00013698,2]
[425081768,1781471433000,-500.0,0.00013698,2]
[425081766,1781471433000,-500.0,0.00013698,2]
[425081764,1781471433000,-500.0,0.00013698,2]
[425081763,1781471433000,-500.0,0.00013698,2]
[425081761,1781471433000,-902.88,0.00013698,2]
[425081760,1781471433000,-466.102207,0.00013698,2]
[425081765,1781471433000,-500.0,0.00013698,2]
[425081759,1781471433000,-500.0,0.00013698,2]
[425081789,1781471433000,-500.0,0.00013699,2]
[425081772,1781471433000,-250.0,0.00013699,2]
[425081785,1781471433000,-500.0,0.00013699,2]
[425081801,1781471433000,-500.0,0.00013699,2]
[425081790,1781471433000,-500.0,0.00013699,2]
[425081814,1781471433000,-566.149995,0.000138,2]
[425081812,1781471433000,-4741.73134818,0.000138,2]
[425081815,1781471433000,-782.17952683,0.000138,2]
[425081813,1781471433000,-867.61933125,0.000138,2]
[425081809,1781471433000,-648.92570196,0.00013768,2]
[425081811,1781471433000,-2974.367,0.000138,2]
[425081810,1781471433000,-6821.9615,0.000138,2]
[425081808,1781471433000,-4885.19442,0.00013759,2]
[425081806,1781471433000,-4112.23639296,0.00013726,2]
[425081807,1781471433000,-2432.18360704,0.00013726,2]
[425081805,1781471433000,-163.74,0.000137,2]
[425081804,1781471433000,-500.0,0.00013699,2]
[425081803,1781471433000,-500.0,0.00013699,2]
[425081802,1781471433000,-500.0,0.00013699,2]
[425081799,1781471433000,-500.0,0.00013699,2]
[425081798,1781471433000,-500.0,0.00013699,2]
[425081797,1781471433000,-500.0,0.00013699,2]
[425081796,1781471433000,-500.0,0.00013699,2]
[425081792,1781471433000,-500.0,0.00013699,2]
[425081794,1781471433000,-500.0,0.00013699,2]
[425081795,1781471433000,-500.0,0.00013699,2]
[425081793,1781471433000,-500.0,0.00013699,2]
[425081791,1781471433000,-500.0,0.00013699,2]
[425081783,1781471433000,-500.0,0.00013699,2]
[425081788,1781471433000,-500.0,0.00013699,2]
[425081800,1781471433000,-549.15052886,0.00013699,2]
[425081786,1781471433000,-500.0,0.00013699,2]
[425081817,1781471437000,-302.00000012,0.00012209,2]
[425081819,1781471437000,-745071.7959,0.00013598,2]
[425081818,1781471437000,-3019.41999988,0.00012209,2]
[425081914,1781471438000,-1047.97376742,0.00014299,5]
[425081855,1781471438000,-500.0,0.00013899,2]
[425081868,1781471438000,-1995.65332224,0.00013939,2]
[425081861,1781471438000,-791056.566,0.000139,2]
[425081853,1781471438000,-500.0,0.00013899,2]
[425081858,1781471438000,-500.0,0.00013899,2]
[425081872,1781471438000,-875.12876489,0.00013975,2]
[425081870,1781471438000,-2275.75437509,0.00013954,2]
[425081874,1781471438000,-60000.0,0.0001399,2]
[425081876,1781471438000,-1500.0,0.00014,2]
[425081879,1781471438000,-250.0,0.00014,2]
[425081881,1781471438000,-202.105689,0.00014,2]
[425081883,1781471438000,-1995.65332224,0.00014057,2]
[425081885,1781471438000,-2275.75437509,0.00014071,2]
[425081890,1781471438000,-875.12876489,0.00014129,2]
[425081888,1781471438000,-166.66,0.00014105,2]
[425081894,1781471438000,-2275.75437509,0.00014187,2]
[425081897,1781471438000,-4951.924,0.000142,2]
[425081899,1781471438000,-477.68248327,0.0001421,7]
[425081901,1781471438000,-268.66437838,0.00014279,2]
[425081903,1781471438000,-875.12876489,0.00014283,2]
[425081907,1781471438000,-502.35889749,0.00014299,2]
[425081905,1781471438000,-1995.65332224,0.00014294,2]
[425081910,1781471438000,-1039.55630745,0.00014299,5]
[425081919,1781471438000,-500.0,0.00014299,2]
[425081892,1781471438000,-1995.65332224,0.00014176,2]
[425081850,1781471438000,-500.0,0.00013899,2]
[425081912,1781471438000,-1051.48104242,0.00014299,5]
[425081864,1781471438000,-2000.0,0.00013905,2]
[425081820,1781471438000,-8215.67819874,0.000138,2]
[425081822,1781471438000,-500.0,0.00013819,2]
[425081824,1781471438000,-875.1287649,0.00013821,2]
[425081821,1781471438000,-2500.0,0.000138,2]
[425081826,1781471438000,-2275.75437512,0.00013838,2]
[425081823,1781471438000,-1995.65332226,0.00013821,2]
[425081825,1781471438000,-166.66,0.00013832,2]
[425081829,1781471438000,-500.0,0.00013899,2]
[425081827,1781471438000,-1063.40577738,0.00013899,5]
[425081828,1781471438000,-500.0,0.00013899,2]
[425081831,1781471438000,-521.91,0.00013899,2]
[425081830,1781471438000,-500.0,0.00013899,2]